[Event "4NCL 2021-22"]
[Site "England"]
[Date "2022.03.26"]
[Round "5.67"]
[White "Hill, Alistair"]
[Black "Coathup, Roger H"]
[Result "1-0"]
[ECO "E97"]
[WhiteElo "2236"]
[BlackElo "2154"]
[Annotator "ChessBase"]
[PlyCount "81"]
[EventDate "2021.11.27"]
[EventType "team-tourn"]
[EventCountry "ENG"]
[SourceTitle "playchess.com"]
[Source "ChessBase"]
[SourceQuality "1"]
[TimeControl "40/6000+30:3000+30"]

1. d4 {[%emt 0:05:33]} Nf6 {[%emt 0:00:06]} 2. c4 {[%emt 0:00:05]} g6 {[%emt 0:00:08]} 3. Nc3 {[%emt 0:00:45]} Bg7 {[%emt 0:00:07]} 4. e4 {[%emt 0:00:04]} d6 {[%emt 0:00:06]} 5. Nf3 {[%emt 0:00:05]} O-O {[%emt 0:00:14]} 6. Be2 {[%emt 0:00:03]} e5 {[%emt 0:00:20]} 7. O-O {[%emt 0:00:25]} Bg4 {[%emt 0:04:13]} 8. Be3 {[%emt 0:01:24]} Nc6 {[%emt 0:06:43]} 9. d5 {[%emt 0:03:46]} Bxf3 {[%emt 0:06:13]} 10. Bxf3 {[%emt 0:05:13]} Nd4 {[%emt 0:03:23]} 11. Bxd4 {[%emt 0:23:34]} exd4 {[%emt 0:00:09]} 12. Qxd4 {[%emt 0:00:07]} Re8 {[%emt 0:09:54]} 13. Qd2 {[%emt 0:02:05]} Nd7 {[%emt 0:03:26]} 14. Rae1 {[%emt 0:05:16]} Nb6 {[%emt 0:11:25]} 15. b3 {[%emt 0:07:39]} Qf6 {[%emt 0:02:55]} 16. Nb5 {[%emt 0:08:16]} Re7 {[%emt 0:07:03]} 17. e5 {[%emt 0:07:05]} dxe5 {[%emt 0:01:50]} 18. c5 {[%emt 0:00:05]} Nc8 {[%emt 0:05:36]} 19. Qa5 {[%emt 0:01:12]} b6 {[%emt 0:10:01]} 20. Qa3 {[%emt 0:02:49]} Rb8 {[%emt 0:01:49]} 21. d6 {[%emt 0:07:01]} cxd6 {[%emt 0:00:26]} 22. cxd6 {[%emt 0:00:06]} Rd7 {[%emt 0:01:45]} 23. Bg4 {[%emt 0:00:10]} Rd8 {[%emt 0:01:21]} 24. Bxc8 {[%emt 0:03:02]} Rbxc8 {[%emt 0:01:35]} 25. Qxa7 {[%emt 0:00:17]} Ra8 {[%emt 0:05:29]} 26. Qxb6 {[%emt 0:00:55]} Rxa2 {[%emt 0:03:30]} 27. Rd1 {[%emt 0:04:01]} Bf8 {[%emt 0:01:44]} 28. Nc3 {[%emt 0:07:45]} Raa8 {[%emt 0:01:21]} 29. Nd5 {[%emt 0:00:14]} Qg5 {[%emt 0:02:04]} 30. d7 {[%emt 0:08:58]} Kg7 {[%emt 0:04:05]} 31. f4 {[%emt 0:01:59]} exf4 {[%emt 0:03:12]} 32. Qd4+ {[%emt 0:00:19]} f6 {[%emt 0:00:39]} 33. Nxf4 {[%emt 0:00:33]} Ra6 {[%emt 0:02:38]} 34. Kh1 {[%emt 0:01:28]} Qe5 {[%emt 0:05:39]} 35. Qc4 {[%emt 0:00:39]} Rd6 {[%emt 0:01:33]} 36. Rxd6 {[%emt 0:00:39]} Bxd6 {[%emt 0:00:15]} 37. Qc8 {[%emt 0:04:02]} Bc7 {[%emt 0:00:26]} 38. Qxc7 {[%emt 0:00:35]} Qxc7 {[%emt 0:00:30]} 39. Ne6+ {[%emt 0:00:04]} Kf7 {[%emt 0:00:17]} 40. Nxc7 {[%emt 0:00:06]} Rxd7 {[%emt 0:00:02]} 41. Rc1 {[%emt 0:50:31]} 1-0

[Event "4NCL 2021-22"]
[Site "England"]
[Date "2022.03.26"]
[Round "5.70"]
[White "Longson, Sarah N"]
[Black "Stewart, Ashley"]
[Result "0-1"]
[ECO "B06"]
[WhiteElo "2022"]
[BlackElo "2062"]
[Annotator "ChessBase"]
[PlyCount "54"]
[EventDate "2021.11.27"]
[EventType "team-tourn"]
[EventCountry "ENG"]
[SourceTitle "playchess.com"]
[Source "ChessBase"]
[SourceQuality "1"]
[TimeControl "40/6000+30:3000+30"]

1. e4 {[%emt 0:00:02]} g6 {[%emt 0:00:02]} 2. d4 {[%emt 0:01:36]} Bg7 {[%emt 0:00:05]} 3. Nc3 {[%emt 0:00:57]} d6 {[%emt 0:00:17]} 4. Be3 {[%emt 0:02:30]} a6 {[%emt 0:00:28]} 5. Qd2 {[%emt 0:02:37]} Nd7 {[%emt 0:03:14]} 6. O-O-O {[%emt 0:05:09]} b5 {[%emt 0:03:03]} 7. Nf3 {[%emt 0:09:21]} Bb7 {[%emt 0:02:04]} 8. d5 {[%emt 0:08:59]} b4 {[%emt 0:10:45]} 9. Ne2 {[%emt 0:04:42]} c5 {[%emt 0:01:51]} 10. dxc6 {[%emt 0:19:10]} Bxc6 {[%emt 0:00:09]} 11. Ned4 {[%emt 0:01:47]} Bxe4 {[%emt 0:06:34]} 12. Ng5 {[%emt 0:07:25]} Ngf6 {[%emt 0:05:49]} 13. Nxe4 {[%emt 0:04:09]} Nxe4 {[%emt 0:00:05]} 14. Qxb4 {[%emt 0:01:05]} Nec5 {[%emt 0:12:22]} 15. Qd2 {[%emt 0:13:30]} Qc7 {[%emt 0:06:07]} 16. Nb3 {[%emt 0:08:14]} Nxb3+ {[%emt 0:09:35]} 17. axb3 {[%emt 0:00:05]} O-O {[%emt 0:00:50]} 18. h4 {[%emt 0:02:35]} a5 {[%emt 0:10:36]} 19. Bb5 {[%emt 0:00:35]} Nc5 {[%emt 0:00:34]} 20. Bxc5 {[%emt 0:02:51]} Qxc5 {[%emt 0:01:02]} 21. Qe2 {[%emt 0:00:57]} Rab8 {[%emt 0:08:46]} 22. Ba4 {[%emt 0:00:35]} Rfc8 {[%emt 0:03:13]} 23. h5 {[%emt 0:00:51]} Rb4 {[%emt 0:05:51]} 24. hxg6 {[%emt 0:02:21]} hxg6 {[%emt 0:00:27]} 25. Kb1 {[%emt 0:03:09]} Rcb8 {[%emt 0:07:19]} 26. Qxe7 {[%emt 0:03:03]} Rxa4 {[%emt 0:02:22]} 27. Rxd6 {[%emt 0:00:49]} Ra1+ {[%emt 0:00:38]} 0-1

[Event "4NCL 2021-22"]
[Site "England"]
[Date "2022.03.26"]
[Round "5.71"]
[White "Starley, Robert"]
[Black "Henderson, David"]
[Result "0-1"]
[ECO "C99"]
[WhiteElo "2053"]
[BlackElo "2108"]
[Annotator "NA"]
[PlyCount "100"]
[EventDate "2021.11.27"]
[EventType "team-tourn"]
[EventCountry "ENG"]
[SourceTitle "playchess.com"]
[Source "ChessBase"]
[SourceQuality "1"]
[TimeControl "40/6000+30:3000+30"]

1. e4 {[%emt 0:00:01]} e5 {[%emt 0:00:07]} 2. Nf3 {[%emt 0:00:05]} Nc6 {[%emt 0:00:08]} 3. Bb5 {[%emt 0:00:04]} a6 {[%emt 0:00:39]} 4. Ba4 {[%emt 0:00:05]} Nf6 {[%emt 0:00:08]} 5. O-O {[%emt 0:00:13]} Be7 {[%emt 0:00:07]} 6. Re1 {[%emt 0:00:11]} b5 {[%emt 0:00:07]} 7. Bb3 {[%emt 0:00:02]} d6 {[%emt 0:00:13]} 8. c3 {[%emt 0:00:08]} O-O {[%emt 0:00:13]} 9. h3 {[%emt 0:00:08]} Na5 {[%emt 0:01:06]} 10. Bc2 {[%emt 0:00:14]} c5 {[%emt 0:00:08]} 11. d4 {[%emt 0:00:23]} Qc7 {[%emt 0:01:30]} 12. Nbd2 {[%emt 0:01:31]} cxd4 {[%emt 0:00:58]} 13. cxd4 {[%emt 0:00:10]} Nc6 {[%emt 0:00:11]} 14. d5 {[%emt 0:02:39]} Nb4 {[%emt 0:00:47]} 15. Bb1 {[%emt 0:00:37]} a5 {[%emt 0:00:08]} 16. Nf1 {[%emt 0:02:48]} Bd7 {[%emt 0:01:15]} 17. Bd2 {[%emt 0:00:43]} Na6 {[%emt 0:02:41]} 18. Ng3 {[%emt 0:00:30]} Rfe8 {[%emt 0:03:06]} 19. Bd3 {[%emt 0:01:09]} Nc5 {[%emt 0:00:52]} 20. Bf1 {[%emt 0:00:38]} h6 {[%emt 0:14:50]} 21. Rc1 {[%emt 0:00:24]} Qb7 {[%emt 0:01:51]} 22. Rxc5 {[%emt 0:05:26]} dxc5 {[%emt 0:01:30]} 23. Nxe5 {[%emt 0:00:06]} Bd6 {[%emt 0:10:49]} 24. Nxd7 {[%emt 0:06:29]} Qxd7 {[%emt 0:02:08]} 25. f4 {[%emt 0:03:35]} c4 {[%emt 0:02:37]} 26. Qf3 {[%emt 0:02:46]} Bb4 {[%emt 0:05:08]} 27. Bc3 {[%emt 0:07:27]} Bxc3 {[%emt 0:01:48]} 28. Qxc3 {[%emt 0:00:46]} Qa7+ {[%emt 0:03:01]} 29. Kh2 {[%emt 0:01:21]} Qf2 {[%emt 0:00:30]} 30. Qc1 {[%emt 0:19:15]} Nxd5 {[%emt 0:03:06]} 31. Nh5 {[%emt 0:06:23]} Qh4 {[%emt 0:33:55]} 32. g4 {[%emt 0:03:51]} Nf6 {[%emt 0:02:31]} 33. Nxf6+ {[%emt 0:03:52]} Qxf6 {[%emt 0:00:06]} 34. e5 {[%emt 0:00:16]} Qb6 {[%emt 0:00:16]} 35. Bg2 {[%emt 0:00:41]} Rad8 {[%emt 0:00:15]} 36. Qc2 {[%emt 0:01:35]} Qd4 {[%emt 0:01:19]} 37. Rf1 {[%emt 0:04:10]} Qe3 {[%emt 0:04:48]} 38. Rf3 {[%emt 0:02:40]} Rd2 {[%emt 0:01:45]} 39. Rxe3 {[%emt 0:05:31]} Rxc2 {[%emt 0:00:07]} 40. b3 {[%emt 0:02:51]} Rd8 {[%emt 0:00:48]} 41. Kg3 {[%emt 0:52:02]} Rxa2 {[%emt 0:58:08]} 42. bxc4 {[%emt 0:00:57]} bxc4 {[%emt 0:00:06]} 43. Be4 {[%emt 0:00:18]} Rb2 {[%emt 0:03:46]} 44. Kh4 {[%emt 0:00:38]} Rb3 {[%emt 0:00:19]} 45. Re1 {[%emt 0:00:54]} Rd2 {[%emt 0:00:38]} 46. Ra1 {[%emt 0:00:45]} Rh2 {[%emt 0:00:45]} 47. g5 {[%emt 0:00:10]} Rhxh3+ {[%emt 0:00:50]} 48. Kg4 {[%emt 0:00:07]} g6 {[%emt 0:00:14]} 49. f5 {[%emt 0:00:45]} h5+ {[%emt 0:00:14]} 50. Kf4 {[%emt 0:00:08]} Rh4# {[%emt 0:00:00]} 0-1

[Event "4NCL 2021-22"]
[Site "England"]
[Date "2022.03.26"]
[Round "5.72"]
[White "Gazis, Georgios"]
[Black "Chan, Nevil"]
[Result "1/2-1/2"]
[ECO "B00"]
[WhiteElo "1817"]
[BlackElo "2010"]
[Annotator "NA"]
[PlyCount "84"]
[EventDate "2021.11.27"]
[EventType "team-tourn"]
[EventCountry "ENG"]
[SourceTitle "playchess.com"]
[Source "ChessBase"]
[SourceQuality "1"]
[TimeControl "40/6000+30:3000+30"]

1. e4 {[%emt 0:00:03]} b6 {[%emt 0:02:46]} 2. d4 {[%emt 0:00:26]} Bb7 {[%emt 0:00:37]} 3. Bd3 {[%emt 0:00:07]} Nf6 {[%emt 0:01:00]} 4. Qe2 {[%emt 0:01:03]} Nc6 {[%emt 0:01:47]} 5. c3 {[%emt 0:00:41]} e5 {[%emt 0:00:12]} 6. Nf3 {[%emt 0:00:47]} d6 {[%emt 0:00:56]} 7. Nbd2 {[%emt 0:03:16]} g6 {[%emt 0:13:33]} 8. d5 {[%emt 0:15:06]} Ne7 {[%emt 0:04:31]} 9. O-O {[%emt 0:01:46]} Bg7 {[%emt 0:00:27]} 10. Nc4 {[%emt 0:02:51]} h6 {[%emt 0:09:04]} 11. a4 {[%emt 0:06:42]} a5 {[%emt 0:09:28]} 12. Be3 {[%emt 0:06:13]} O-O {[%emt 0:07:09]} 13. Nfd2 {[%emt 0:05:03]} Bc8 {[%emt 0:18:37]} 14. Na3 {[%emt 0:02:05]} Ng4 {[%emt 0:10:56]} 15. Nb5 {[%emt 0:02:25]} f5 {[%emt 0:04:35]} 16. f3 {[%emt 0:01:36]} Nxe3 {[%emt 0:00:48]} 17. Qxe3 {[%emt 0:00:07]} Bd7 {[%emt 0:00:18]} 18. b4 {[%emt 0:04:24]} Bf6 {[%emt 0:13:24]} 19. Nb3 {[%emt 0:13:50]} Bg5 {[%emt 0:00:30]} 20. Qe2 {[%emt 0:00:18]} Nc8 {[%emt 0:04:17]} 21. g3 {[%emt 0:13:50]} fxe4 {[%emt 0:01:49]} 22. Qxe4 {[%emt 0:08:41]} Ne7 {[%emt 0:00:22]} 23. h4 {[%emt 0:05:37]} Bf6 {[%emt 0:00:46]} 24. Kg2 {[%emt 0:00:44]} axb4 {[%emt 0:00:20]} 25. cxb4 {[%emt 0:03:54]} Bf5 {[%emt 0:00:08]} 26. Qc4 {[%emt 0:00:12]} Bxd3 {[%emt 0:00:05]} 27. Qxd3 {[%emt 0:00:19]} e4 {[%emt 0:00:06]} 28. Qxe4 {[%emt 0:00:13]} Bxa1 {[%emt 0:00:06]} 29. Rxa1 {[%emt 0:00:19]} Nf5 {[%emt 0:01:14]} 30. N3d4 {[%emt 0:02:56]} Qf6 {[%emt 0:02:56]} 31. Qe6+ {[%emt 0:02:41]} Qxe6 {[%emt 0:01:41]} 32. Nxe6 {[%emt 0:00:14]} Ne3+ {[%emt 0:00:16]} 33. Kf2 {[%emt 0:01:07]} Nxd5 {[%emt 0:00:01]} 34. Nxf8 {[%emt 0:00:16]} Kxf8 {[%emt 0:00:02]} 35. Rd1 {[%emt 0:02:34]} c6 {[%emt 0:00:24]} 36. Nxd6 {[%emt 0:02:06]} Rxa4 {[%emt 0:00:08]} 37. b5 {[%emt 0:01:23]} Ra2+ {[%emt 0:00:01]} 38. Ke1 {[%emt 0:00:39]} Nb4 {[%emt 0:02:21]} 39. bxc6 {[%emt 0:01:16]} Nxc6 {[%emt 0:00:01]} 40. Rb1 {[%emt 0:01:18]} Ne5 {[%emt 0:01:42]} 41. f4 {[%emt 0:03:26]} Nf3+ {[%emt 0:00:03]} 42. Kd1 {[%emt 0:00:05]} Rd2+ {[%emt 0:00:37]} 1/2-1/2

[Event "4NCL 2021-22"]
[Site "England"]
[Date "2022.03.26"]
[Round "5.73"]
[White "Cumming, Rhys"]
[Black "Stoyanov, Viktor"]
[Result "1-0"]
[ECO "B30"]
[WhiteElo "2360"]
[BlackElo "2236"]
[Annotator "ChessBase"]
[PlyCount "43"]
[EventDate "2021.11.27"]
[EventType "team-tourn"]
[EventCountry "ENG"]
[SourceTitle "playchess.com"]
[Source "ChessBase"]
[SourceQuality "1"]
[TimeControl "40/6000+30:3000+30"]

1. e4 {[%emt 0:01:31]} c5 {[%emt 0:00:53]} 2. Nf3 {[%emt 0:00:14]} Nc6 {[%emt 0:00:44]} 3. Bb5 {[%emt 0:02:18]} e5 {[%emt 0:02:54]} 4. O-O {[%emt 0:07:10]} Bd6 {[%emt 0:01:28]} 5. d4 {[%emt 0:10:00]} exd4 {[%emt 0:06:45]} 6. c3 {[%emt 0:25:07]} a6 {[%emt 0:01:55]} 7. Bc4 {[%emt 0:04:33]} Nge7 {[%emt 0:11:29]} 8. cxd4 {[%emt 0:17:22]} cxd4 {[%emt 0:01:07]} 9. Ng5 {[%emt 0:10:26]} Ne5 {[%emt 0:03:22]} 10. Qxd4 {[%emt 0:01:09]} Qc7 {[%emt 0:04:38]} 11. Bxf7+ {[%emt 0:13:31]} Nxf7 {[%emt 0:33:43]} 12. Qxg7 {[%emt 0:00:05]} Rf8 {[%emt 0:00:20]} 13. Nxh7 {[%emt 0:00:59]} Bxh2+ {[%emt 0:00:35]} 14. Kh1 {[%emt 0:00:02]} Rh8 {[%emt 0:00:14]} 15. f4 {[%emt 0:06:47]} Qc4 {[%emt 0:02:23]} 16. Nd2 {[%emt 0:01:04]} Qe2 {[%emt 0:00:47]} 17. Rf3 {[%emt 0:02:04]} Bxf4 {[%emt 0:00:54]} 18. Nf1 {[%emt 0:01:00]} Qxe4 {[%emt 0:01:53]} 19. Qxh8+ {[%emt 0:00:21]} Nxh8 {[%emt 0:00:13]} 20. Nf6+ {[%emt 0:00:09]} Kd8 {[%emt 0:00:11]} 21. Nxe4 {[%emt 0:00:10]} Bxc1 {[%emt 0:00:13]} 22. Rf8+ {[%emt 0:00:25]} 1-0

[Event "4NCL 2021-22"]
[Site "England"]
[Date "2022.03.26"]
[Round "5.74"]
[White "Povah, Nigel E"]
[Black "Kolani, Arjun"]
[Result "1/2-1/2"]
[ECO "D00"]
[WhiteElo "2245"]
[BlackElo "2035"]
[Annotator "ChessBase"]
[PlyCount "94"]
[EventDate "2021.11.27"]
[EventType "team-tourn"]
[EventCountry "ENG"]
[SourceTitle "playchess.com"]
[Source "ChessBase"]
[SourceQuality "1"]
[TimeControl "40/6000+30:3000+30"]

1. d4 {[%emt 0:00:07]} Nf6 {[%emt 0:00:37]} 2. Bg5 {[%emt 0:00:21]} d5 {[%emt 0:00:48]} 3. Bxf6 {[%emt 0:00:43]} gxf6 {[%emt 0:00:53]} 4. c4 {[%emt 0:00:13]} dxc4 {[%emt 0:01:19]} 5. e3 {[%emt 0:00:50]} c5 {[%emt 0:00:39]} 6. Bxc4 {[%emt 0:03:42]} cxd4 {[%emt 0:02:44]} 7. exd4 {[%emt 0:00:06]} Bg7 {[%emt 0:02:17]} 8. Ne2 {[%emt 0:03:28]} Nc6 {[%emt 0:07:35]} 9. Nbc3 {[%emt 0:00:55]} O-O {[%emt 0:02:55]} 10. O-O {[%emt 0:09:06]} f5 {[%emt 0:11:30]} 11. d5 {[%emt 0:03:12]} Ne5 {[%emt 0:04:44]} 12. Bb3 {[%emt 0:00:28]} Qd6 {[%emt 0:11:34]} 13. h3 {[%emt 0:17:10]} Bd7 {[%emt 0:06:16]} 14. Nd4 {[%emt 0:13:13]} Ng6 {[%emt 0:12:39]} 15. Qd2 {[%emt 0:09:57]} a5 {[%emt 0:21:06]} 16. Bc2 {[%emt 0:20:57]} Qf6 {[%emt 0:02:48]} 17. Rfd1 {[%emt 0:05:07]} Rac8 {[%emt 0:05:46]} 18. Bb3 {[%emt 0:03:36]} a4 {[%emt 0:04:34]} 19. Bc2 {[%emt 0:01:30]} a3 {[%emt 0:05:40]} 20. Nce2 {[%emt 0:00:40]} axb2 {[%emt 0:01:53]} 21. Rab1 {[%emt 0:00:07]} Ne5 {[%emt 0:00:14]} 22. Bb3 {[%emt 0:01:48]} Nc4 {[%emt 0:01:49]} 23. Qb4 {[%emt 0:05:19]} b5 {[%emt 0:00:38]} 24. a4 {[%emt 0:01:09]} Qd6 {[%emt 0:00:24]} 25. Qxd6 {[%emt 0:01:39]} Nxd6 {[%emt 0:00:05]} 26. axb5 {[%emt 0:00:35]} Bxb5 {[%emt 0:00:58]} 27. Rxb2 {[%emt 0:01:27]} Rb8 {[%emt 0:00:44]} 28. Ba2 {[%emt 0:01:14]} Bxe2 {[%emt 0:00:24]} 29. Rxe2 {[%emt 0:00:10]} Bxd4 {[%emt 0:00:42]} 30. Rxd4 {[%emt 0:00:06]} Ne4 {[%emt 0:00:36]} 31. Bc4 {[%emt 0:03:48]} Rb4 {[%emt 0:00:20]} 32. d6 {[%emt 0:00:16]} Rb1+ {[%emt 0:00:10]} 33. Kh2 {[%emt 0:00:01]} Nxd6 {[%emt 0:00:48]} 34. Rxe7 {[%emt 0:00:07]} Nxc4 {[%emt 0:00:38]} 35. Rxc4 {[%emt 0:00:02]} Kg7 {[%emt 0:00:15]} 36. Re5 {[%emt 0:00:26]} Kg6 {[%emt 0:00:48]} 37. Rf4 {[%emt 0:00:12]} f6 {[%emt 0:00:37]} 38. Rexf5 {[%emt 0:00:15]} Rb6 {[%emt 0:00:24]} 39. g4 {[%emt 0:00:13]} Ra8 {[%emt 0:00:24]} 40. h4 {[%emt 0:00:26]} Ra3 {[%emt 0:00:29]} 41. g5 {[%emt 0:13:59]} fxg5 {[%emt 0:01:43]} 42. Rxg5+ {[%emt 0:00:35]} Kh6 {[%emt 0:00:07]} 43. Rf7 {[%emt 0:00:34]} Rg6 {[%emt 0:02:25]} 44. Rg3 {[%emt 0:02:43]} Rgxg3 {[%emt 0:10:56]} 45. fxg3 {[%emt 0:00:22]} Kg6 {[%emt 0:00:09]} 46. Rb7 {[%emt 0:00:28]} Ra2+ {[%emt 0:02:52]} 47. Kh3 {[%emt 0:01:33]} h5 {[%emt 0:00:40]} 1/2-1/2

[Event "4NCL 2021-22"]
[Site "England"]
[Date "2022.03.26"]
[Round "5.75"]
[White "Graham, David B"]
[Black "Price, Gwilym"]
[Result "1/2-1/2"]
[ECO "B30"]
[WhiteElo "2128"]
[BlackElo "2097"]
[Annotator "NA"]
[PlyCount "45"]
[EventDate "2021.11.27"]
[EventType "team-tourn"]
[EventCountry "ENG"]
[SourceTitle "playchess.com"]
[Source "ChessBase"]
[SourceQuality "1"]
[TimeControl "40/6000+30:3000+30"]

1. e4 {[%emt 0:00:02]} c5 {[%emt 0:00:07]} 2. Nf3 {[%emt 0:00:10]} e6 {[%emt 0:00:12]} 3. Nc3 {[%emt 0:00:19]} Nc6 {[%emt 0:00:08]} 4. Bb5 {[%emt 0:00:25]} Nd4 {[%emt 0:00:24]} 5. Bc4 {[%emt 0:00:58]} Nf6 {[%emt 0:01:04]} 6. O-O {[%emt 0:01:46]} a6 {[%emt 0:00:27]} 7. d3 {[%emt 0:00:37]} b5 {[%emt 0:00:23]} 8. Bb3 {[%emt 0:00:19]} Nxb3 {[%emt 0:00:10]} 9. axb3 {[%emt 0:00:14]} Bb7 {[%emt 0:00:11]} 10. e5 {[%emt 0:05:49]} Nd5 {[%emt 0:00:22]} 11. Nxd5 {[%emt 0:04:55]} Bxd5 {[%emt 0:01:00]} 12. Ng5 {[%emt 0:05:30]} f6 {[%emt 0:11:13]} 13. Ne4 {[%emt 0:09:59]} h5 {[%emt 0:21:26]} 14. Qf3 {[%emt 0:18:28]} Be7 {[%emt 0:11:26]} 15. Qg3 {[%emt 0:06:06]} Kf7 {[%emt 0:01:40]} 16. Be3 {[%emt 0:06:03]} h4 {[%emt 0:15:05]} 17. Qf4 {[%emt 0:01:51]} Qc7 {[%emt 0:08:13]} 18. Bxc5 {[%emt 0:21:17]} Bxc5 {[%emt 0:13:59]} 19. Nxf6 {[%emt 0:00:18]} gxf6 {[%emt 0:00:40]} 20. Qxf6+ {[%emt 0:00:04]} Kg8 {[%emt 0:00:13]} 21. Qg6+ {[%emt 0:00:11]} Kf8 {[%emt 0:00:06]} 22. Qf6+ {[%emt 0:00:09]} Kg8 {[%emt 0:00:06]} 23. Qg6+ {[%emt 0:01:08]} 1/2-1/2

[Event "4NCL 2021-22"]
[Site "England"]
[Date "2022.03.26"]
[Round "5.76"]
[White "Granat, Russell G"]
[Black "Payne, Matthew J"]
[Result "1/2-1/2"]
[ECO "A15"]
[WhiteElo "2173"]
[BlackElo "2158"]
[Annotator "NA"]
[PlyCount "128"]
[EventDate "2021.11.27"]
[EventType "team-tourn"]
[EventCountry "ENG"]
[SourceTitle "playchess.com"]
[Source "ChessBase"]
[SourceQuality "1"]
[TimeControl "40/6000+30:3000+30"]

1. Nf3 {[%emt 0:00:07]} Nf6 {[%emt 0:00:12]} 2. g3 {[%emt 0:00:09]} g6 {[%emt 0:00:11]} 3. b3 {[%emt 0:00:38]} Bg7 {[%emt 0:00:34]} 4. Bb2 {[%emt 0:00:08]} O-O {[%emt 0:00:47]} 5. Bg2 {[%emt 0:00:19]} d6 {[%emt 0:01:32]} 6. c4 {[%emt 0:01:33]} e5 {[%emt 0:03:27]} 7. O-O {[%emt 0:01:36]} Nc6 {[%emt 0:07:19]} 8. Nc3 {[%emt 0:01:26]} h6 {[%emt 0:06:30]} 9. Rc1 {[%emt 0:05:02]} Be6 {[%emt 0:03:15]} 10. d4 {[%emt 0:04:22]} exd4 {[%emt 0:14:26]} 11. Nxd4 {[%emt 0:01:14]} Nxd4 {[%emt 0:00:08]} 12. Qxd4 {[%emt 0:00:11]} Qd7 {[%emt 0:00:04]} 13. Ne4 {[%emt 0:03:11]} Ne8 {[%emt 0:04:07]} 14. Qxg7+ {[%emt 0:00:23]} Nxg7 {[%emt 0:00:02]} 15. Nf6+ {[%emt 0:00:10]} Kh8 {[%emt 0:00:02]} 16. Nxd7 {[%emt 0:00:10]} Bxd7 {[%emt 0:00:01]} 17. Bxb7 {[%emt 0:00:14]} Rab8 {[%emt 0:01:50]} 18. Bf3 {[%emt 0:01:20]} a5 {[%emt 0:06:39]} 19. c5 {[%emt 0:08:51]} a4 {[%emt 0:03:53]} 20. Ba3 {[%emt 0:04:42]} Ne8 {[%emt 0:09:25]} 21. b4 {[%emt 0:01:04]} Kg8 {[%emt 0:06:09]} 22. Rfd1 {[%emt 0:00:51]} Be6 {[%emt 0:00:39]} 23. Rd2 {[%emt 0:01:45]} Ng7 {[%emt 0:08:44]} 24. cxd6 {[%emt 0:03:22]} cxd6 {[%emt 0:00:10]} 25. Bc6 {[%emt 0:03:26]} Rfc8 {[%emt 0:12:39]} 26. b5 {[%emt 0:05:35]} Ne8 {[%emt 0:00:12]} 27. e4 {[%emt 0:02:25]} Rb6 {[%emt 0:01:26]} 28. Bb2 {[%emt 0:05:53]} Kf8 {[%emt 0:00:38]} 29. a3 {[%emt 0:01:13]} Ke7 {[%emt 0:00:14]} 30. Rd4 {[%emt 0:03:55]} Bd7 {[%emt 0:03:33]} 31. Bxd7 {[%emt 0:05:24]} Kxd7 {[%emt 0:02:26]} 32. Rxc8 {[%emt 0:02:56]} Kxc8 {[%emt 0:00:04]} 33. Rxa4 {[%emt 0:00:18]} Rxb5 {[%emt 0:00:12]} 34. Bd4 {[%emt 0:00:45]} Nc7 {[%emt 0:01:10]} 35. Be3 {[%emt 0:01:15]} g5 {[%emt 0:02:46]} 36. h3 {[%emt 0:01:41]} Kd7 {[%emt 0:04:05]} 37. Kg2 {[%emt 0:00:50]} f5 {[%emt 0:01:37]} 38. exf5 {[%emt 0:03:15]} Rxf5 {[%emt 0:00:06]} 39. h4 {[%emt 0:03:10]} gxh4 {[%emt 0:01:03]} 40. Rxh4 {[%emt 0:00:20]} h5 {[%emt 0:02:06]} 41. a4 {[%emt 0:52:40]} Nd5 {[%emt 0:52:39]} 42. Bd4 {[%emt 0:03:11]} Kc6 {[%emt 0:00:00]} 43. Re4 {[%emt 0:00:00]} Nc7 {[%emt 0:00:00]} 44. Bc3 {[%emt 0:00:00]} Nd5 {[%emt 0:00:00]} 45. Rc4+ {[%emt 0:00:00]} Kb6 {[%emt 0:00:00]} 46. Bd2 {[%emt 0:00:00]} Nf6 {[%emt 0:00:00]} 47. a5+ {[%emt 0:00:00]} Ka6 {[%emt 0:00:00]} 48. f3 {[%emt 0:00:00]} Rd5 {[%emt 0:00:00]} 49. Bc3 {[%emt 0:00:00]} Nd7 {[%emt 0:00:00]} 50. f4 {[%emt 0:00:00]} Rd3 {[%emt 0:00:00]} 51. Rd4 {[%emt 0:00:00]} Rxd4 {[%emt 0:00:00]} 52. Bxd4 {[%emt 0:00:07]} Kxa5 {[%emt 0:00:00]} 53. Kh3 {[%emt 0:00:00]} Kb4 {[%emt 0:00:00]} 54. Kh4 {[%emt 0:00:00]} Kc4 {[%emt 0:00:00]} 55. Bb2 {[%emt 0:00:00]} Kd3 {[%emt 0:00:00]} 56. Kxh5 {[%emt 0:00:00]} Ke4 {[%emt 0:00:00]} 57. Kg5 {[%emt 0:00:00]} d5 {[%emt 0:00:00]} 58. g4 {[%emt 0:00:00]} d4 {[%emt 0:00:00]} 59. f5 {[%emt 0:00:00]} d3 {[%emt 0:00:00]} 60. Bc3 {[%emt 0:00:00]} Kf3 {[%emt 0:00:00]} 61. Bb4 {[%emt 0:00:00]} Nc5 {[%emt 0:00:00]} 62. Kh5 {[%emt 0:00:00]} Ne4 {[%emt 0:00:00]} 63. g5 {[%emt 0:00:00]} Kf4 {[%emt 0:00:00]} 64. g6 {[%emt 0:00:00]} Ng3+ {[%emt 0:00:00]} 1/2-1/2